fUST/lending_fUST_20250615
["ID","MTS","AMOUNT","RATE_DAILY","PERIOD"]
[365855493,1749961833897,-460.0,0.00022465,4]
[365855494,1749961833907,-1267.56,0.00022465,4]
[365855495,1749961833916,-1245.92,0.00022465,4]
[365855496,1749961833925,-1024.72,0.00022465,4]
[365855497,1749961833935,-1188.56,0.00022465,4]
[365855498,1749961833944,-710.13,0.00022465,4]
[365855499,1749961833954,-546.76327404,0.00022465,4]
[365855500,1749961833963,-460.0,0.00022465,4]
[365855501,1749961833972,-460.0,0.00022465,4]
[365855502,1749961833981,-460.0,0.00022465,4]
[365855503,1749961833990,-507.73,0.00022465,4]
[365855504,1749961834000,-460.0,0.00022465,4]
[365855505,1749961834009,-460.0,0.00022465,4]
[365855506,1749961834018,-460.0,0.00022465,4]
[365855507,1749961834028,-460.0,0.00022465,4]
[365855508,1749961834037,-460.0,0.00022465,4]
[365855509,1749961834047,-528.76,0.00022465,4]
[365855510,1749961834056,-460.0,0.00022465,4]
[365855511,1749961834065,-835.66,0.00022465,4]
[365855512,1749961834075,-460.0,0.00022465,4]
[365855513,1749961834084,-1335.03,0.00022465,4]
[365855514,1749961834094,-460.0,0.00022465,4]
[365855515,1749961834103,-460.0,0.00022465,4]
[365855516,1749961834112,-1351.86,0.00022465,4]
[365855517,1749961834122,-2031.85,0.00022465,4]
[365855518,1749961834131,-597.57,0.00022465,4]
[365855519,1749961834141,-460.0,0.00022465,4]
[365855520,1749961834150,-460.0,0.00022465,4]
[365855521,1749961834160,-460.0,0.00022465,4]
[365855522,1749961834170,-460.0,0.00022465,4]
[365855523,1749961834179,-460.0,0.00022465,4]
[365855524,1749961834188,-460.0,0.00022465,4]
[365855525,1749961834197,-1239.37,0.00022465,4]
[365855526,1749961834207,-840.14,0.00022465,4]
[365855527,1749961834216,-1455.47,0.00022465,4]
[365855528,1749961834225,-460.0,0.00022465,4]
[365855529,1749961834235,-460.0,0.00022465,4]
[365855530,1749961834245,-2193.53,0.00022465,4]
[365855531,1749961834254,-571.53,0.00022465,4]
[365855532,1749961834263,-460.0,0.00022465,4]
[365855533,1749961834273,-450.21907733,0.00022508,2]
[365855534,1749961834282,-177.0323298,0.00022548,2]
[365855535,1749961834293,-153.0,0.00022548,2]
[365855536,1749961834303,-177.0323298,0.00022548,2]
[365855537,1749961834312,-153.0,0.00022548,2]
[365855538,1749961834322,-158.9019424,0.00022548,2]
[365855539,1749961834331,-623.2742186,0.00022548,2]
[365855540,1749961834341,-177.0323298,0.00022548,2]
[365855541,1749961834350,-153.0,0.00022548,2]
[365855542,1749961834359,-573.8932911,0.00022548,2]
[365855543,1749961834368,-153.0,0.00022548,2]
[365855544,1749961834378,-158.9019424,0.00022548,2]
[365855545,1749961834387,-573.8932911,0.00022548,2]
[365855546,1749961834396,-158.9019424,0.00022548,2]
[365855547,1749961834407,-177.0323298,0.00022548,2]
[365855548,1749961834416,-158.9019424,0.00022548,2]
[365855549,1749961834425,-177.0323298,0.00022548,2]
[365855550,1749961834435,-153.0,0.00022548,2]
[365855551,1749961834444,-153.0,0.00022548,2]
[365855552,1749961834453,-573.8932911,0.00022548,2]
[365855553,1749961834462,-573.8932911,0.00022548,2]
[365855554,1749961834472,-158.9019424,0.00022548,2]
[365855555,1749961834481,-177.0323298,0.00022548,2]
[365855556,1749961834604,-153.0,0.00022548,2]
[365855557,1749961834614,-368.062114,0.00022548,2]
[365855558,1749961834624,-177.0323298,0.00022548,2]
[365855559,1749961834633,-573.8932911,0.00022548,2]
[365855560,1749961834643,-153.0,0.00022548,2]
[365855561,1749961834653,-177.0323298,0.00022548,2]
[365855562,1749961834662,-158.9019425,0.00022548,2]
[365855563,1749961834671,-573.8932911,0.00022548,2]
[365855564,1749961834681,-177.0323298,0.00022548,2]
[365855565,1749961834690,-158.9019424,0.00022548,2]
[365855566,1749961834699,-573.8932911,0.00022548,2]
[365855567,1749961834708,-153.0,0.00022548,2]
[365855568,1749961834717,-153.0,0.00022548,2]
[365855569,1749961834726,-177.0323298,0.00022548,2]
[365855570,1749961834735,-158.9019424,0.00022548,2]
[365855571,1749961834744,-573.8932911,0.00022548,2]
[365855572,1749961834753,-177.0323298,0.00022548,2]
[365855573,1749961834762,-573.8932911,0.00022548,2]
[365855574,1749961834771,-153.0,0.00022548,2]
[365855575,1749961834780,-158.9019424,0.00022548,2]
[365855576,1749961834790,-153.0,0.00022548,2]
[365855577,1749961834798,-158.9019424,0.00022548,2]
[365855578,1749961834807,-177.0323298,0.00022548,2]
[365855579,1749961834818,-573.8932911,0.00022548,2]
[365855580,1749961834828,-158.9019424,0.00022548,2]
[365855581,1749961834838,-153.0,0.00022548,2]
[365855582,1749961834847,-153.0,0.00022548,2]
[365855583,1749961834856,-573.8932911,0.00022548,2]
[365855584,1749961834867,-177.0323298,0.00022548,2]
[365855585,1749961834877,-177.0323298,0.00022548,2]
[365855586,1749961834886,-158.9019424,0.00022548,2]
[365855587,1749961834898,-153.0,0.00022548,2]
[365855588,1749961834908,-177.0323298,0.00022548,2]
[365855589,1749961834919,-178.5734465,0.00022548,2]
[365855590,1749961834930,-460.0,0.00022739,4]
[365855591,1749961834939,-460.0,0.00022739,4]
[365855592,1749961834948,-511.38,0.00022739,4]
[365855593,1749961834959,-483.61,0.00022739,4]
[365855594,1749961834968,-710.26,0.00022739,4]
[365855595,1749961834979,-515.27,0.00022739,4]
[365855596,1749961834989,-1744.52,0.00022739,4]
[365855597,1749961834999,-460.0,0.00022739,2]
[365855598,1749961835008,-3074.37,0.00022739,4]
[365855599,1749961835018,-460.0,0.00022739,4]
[365855600,1749961835028,-560.41,0.00022739,4]
[365855601,1749961835038,-460.0,0.00022739,4]
[365855602,1749961835048,-544.96,0.00022739,4]
[365855603,1749961835058,-460.0,0.00022739,4]
[365855604,1749961835067,-741.41,0.00022739,4]
[365855605,1749961835076,-584.19,0.00022739,4]
[365855606,1749961835085,-460.0,0.00022739,4]
[365855607,1749961835095,-3314.69,0.00022739,4]
[365855608,1749961835104,-2372.39,0.00022739,4]
[365855609,1749961835113,-460.0,0.00022739,4]
[365855610,1749961835122,-2510.16,0.00022739,4]
[365855611,1749961835132,-460.0,0.00022739,4]
[365855612,1749961835141,-2765.32,0.00022739,4]
[365855613,1749961835151,-460.0,0.00022739,4]
[365855614,1749961835160,-1267.56,0.00022739,4]
[365855615,1749961835169,-1245.92,0.00022739,4]
[365855616,1749961835178,-1024.72,0.00022739,4]
[365855617,1749961835187,-1188.56,0.00022739,4]
[365855618,1749961835197,-710.13,0.00022739,4]
[365855619,1749961835206,-460.0,0.00022739,4]
[365855620,1749961835215,-460.0,0.00022739,4]
[365855621,1749961835224,-460.0,0.00022739,4]
[365855622,1749961835234,-507.73,0.00022739,4]
[365855623,1749961835243,-460.0,0.00022739,4]
[365855624,1749961835252,-460.0,0.00022739,4]
[365855625,1749961835262,-460.0,0.00022739,4]
[365855626,1749961835271,-460.0,0.00022739,4]
[365855627,1749961835280,-460.0,0.00022739,4]
[365855628,1749961835290,-528.76,0.00022739,4]
[365855629,1749961835299,-460.0,0.00022739,4]
[365855630,1749961835308,-835.66,0.00022739,4]
[365855631,1749961835318,-460.0,0.00022739,4]
[365855632,1749961835326,-1335.03,0.00022739,4]
[365855633,1749961835336,-460.0,0.00022739,4]
[365855634,1749961835345,-460.0,0.00022739,4]
[365855635,1749961835354,-1351.86,0.00022739,4]
[365855636,1749961835363,-1341.55223434,0.00022739,4]
[365855637,1749961835471,-267.88980492,0.00022739,4]
[365855638,1749961835482,-422.40796074,0.00022739,4]
[365855639,1749961835492,-597.57,0.00022739,4]
[365855640,1749961835501,-460.0,0.00022739,4]
[365855641,1749961835510,-460.0,0.00022739,4]
[365855642,1749961835519,-460.0,0.00022739,4]
[365855643,1749961835528,-460.0,0.00022739,4]
[365855644,1749961835538,-460.0,0.00022739,4]
[365855645,1749961835547,-460.0,0.00022739,4]
[365855646,1749961835557,-1239.37,0.00022739,4]
[365855647,1749961835566,-840.14,0.00022739,4]
[365855648,1749961835576,-1455.47,0.00022739,4]
[365855649,1749961835585,-460.0,0.00022739,4]
[365855650,1749961835594,-337.63278057,0.00022739,4]
[365855651,1749961835606,-122.36721943,0.00022739,4]
[365855652,1749961835616,-2172.24503433,0.00022739,4]
[365855800,1749961845858,-460.0,0.00021917,4]
[365855801,1749961845873,-493.85,0.00021917,4]
[365855802,1749961845883,-504.05,0.00021917,4]
[365855803,1749961845893,-460.0,0.00022191,4]
[365855804,1749961845904,-493.85,0.00022191,4]
[365855805,1749961845916,-504.05,0.00022191,4]
[365855806,1749961845927,-460.0,0.00022465,4]
[365855807,1749961845937,-493.85,0.00022465,4]
[365855808,1749961845949,-504.05,0.00022465,4]
[365855809,1749961845960,-21.28496567,0.00022739,4]
[365855810,1749961845971,-571.53,0.00022739,4]
[365855811,1749961845981,-460.0,0.00022739,4]
[365855812,1749961845992,-460.0,0.00022739,4]
[365855813,1749961846004,-493.85,0.00022739,4]
[365855814,1749961846015,-504.05,0.00022739,4]
[365855815,1749961846025,-153.36631391,0.00022845,2]
[365855816,1749961846036,-438.93027213,0.000229,8]
[365855817,1749961846047,-4401.48903748,0.000229,2]
[365855818,1749961846058,-57.55341063,0.00022965,2]
[365856184,1749962301925,203.477343,0.00013699,2]
[365856192,1749962843113,-188.84402687,0.00019669,2]
[365856193,1749962844118,-784.97210443,0.00019669,2]
[365856194,1749962844140,-1068.20569697,0.00019868,2]
[365856195,1749962849091,-166.71607011,0.00019768,2]
[365856196,1749962849118,-131.79430303,0.00019868,2]
[365856197,1749962849144,-53.11811417,0.00019868,2]
[365856198,1749962850081,-236.06750246,0.00019868,2]
[365856199,1749962851131,-10.81438337,0.00019868,2]
[365856200,1749962851156,-300.0,0.00019868,2]
[365856201,1749962851178,-8384.48051411,0.00019869,2]
[365856202,1749962853077,-320.16898819,0.00019869,2]
[365856212,1749962952383,187.88673407,0.000189,2]
[365856213,1749962964097,-2624.1928918,0.00019869,2]
[365856214,1749962964118,-466.70936926,0.00019955,2]
[365856268,1749963032085,-199.29063074,0.00019955,2]
[365856270,1749963032095,-184.311444,0.00020173,2]
[365856272,1749963032104,-203.477343,0.00020187,2]
[365856274,1749963032114,-193.29450638,0.00020465,2]
[365856277,1749963032123,-160.0,0.00020706,2]
[365856279,1749963032133,-3632.8881734,0.00020853,2]
[365856280,1749963032142,-300.0,0.00021095,2]
[365856282,1749963032152,-2659.98174419,0.00021096,2]
[365856285,1749963032161,-500.0,0.00021096,2]
[365856286,1749963032170,-508.12154889,0.00021096,2]
[365856289,1749963032181,-500.0,0.00021096,2]
[365856291,1749963032191,-500.0,0.00021096,2]
[365856293,1749963032200,-500.0,0.00021096,2]
[365856295,1749963032210,-182.69507658,0.00021096,2]
[365856297,1749963032219,-24900.0,0.00021097,2]
[365856299,1749963032229,-500.0,0.00021154,2]
[365856301,1749963032239,-420.0,0.00021637,2]
[365856303,1749963032248,-1801.89563303,0.00021654,2]
[365856305,1749963032260,-193.89436697,0.00021654,2]
[365856307,1749963032270,-168.0,0.00021655,2]
[365856309,1749963032279,-194.0,0.00021792,2]
[365856311,1749963032289,-1258.14015175,0.000219,6]
[365856313,1749963032298,-500.0,0.00021916,2]
[365856332,1749963032462,-500.0,0.00021916,2]
[365856334,1749963032472,-500.0,0.00021916,2]
[365856336,1749963032482,-500.0,0.00021916,2]
[365856338,1749963032491,-500.0,0.00021916,2]
[365856340,1749963032501,-500.0,0.00021916,2]
[365856342,1749963032510,-410.96548128,0.00021916,2]
[365856344,1749963032521,-89.03451872,0.00021916,2]
[365856346,1749963032531,-379.53201715,0.00021916,2]
[365856348,1749963032540,-500.0,0.00021916,2]
[365856350,1749963032549,-500.0,0.00021916,2]
[365856352,1749963032558,-500.0,0.00021916,2]
[365856354,1749963032568,-500.0,0.00021916,2]
[365856356,1749963032577,-500.0,0.00021916,2]
[365856358,1749963032587,-196.73718693,0.00021916,2]
[365856360,1749963032599,-303.26281307,0.00021916,2]
[365856362,1749963032609,-500.0,0.00021916,2]
[365856364,1749963032622,-500.0,0.00021916,2]
[365856366,1749963032631,-515.0,0.00021916,2]
[365856368,1749963032640,-500.0,0.00021916,2]
[365856370,1749963032650,-432.3033352,0.00021917,4]
[365856373,1749963032659,-460.0,0.00021917,4]
[365856375,1749963032668,-460.0,0.00021917,4]
[365856377,1749963032677,-400.0,0.00021917,4]
[365856378,1749963032686,-315.52839469,0.00021917,4]
[365856420,1749963037978,-114.47160531,0.00021917,4]
[365856421,1749963037988,-444.35704521,0.00021917,4]
[365856422,1749963038001,-435.93408426,0.00021917,4]
[365856423,1749963038011,-444.73064392,0.00021917,4]
[365856424,1749963038020,-449.55413252,0.00021917,4]
[365856425,1749963038030,-446.13757203,0.00021917,4]
[365856426,1749963038039,-370.0,0.00021917,4]
[365856427,1749963038050,-460.0,0.00021917,4]
[365856428,1749963038060,-440.0,0.00021917,4]
[365856429,1749963038070,-460.0,0.00021917,4]
[365856430,1749963038079,-541.38,0.00021917,4]
[365856431,1749963038089,-500.67,0.00021917,4]
[365856432,1749963038098,-596.59414663,0.00021917,4]
[365856433,1749963038107,-460.0,0.00021917,4]
[365856434,1749963038118,-460.0,0.00021917,4]
[365856435,1749963038127,-791.45,0.00021917,4]
[365856436,1749963038137,-459.62419949,0.00021917,4]
[365856437,1749963038146,-460.0,0.00021917,4]
[365856438,1749963038157,-460.0,0.00021917,4]
[365856439,1749963038167,-460.0,0.00021917,4]
[365856440,1749963038176,-460.0,0.00021917,4]
[365856441,1749963038186,-460.0,0.00021917,4]
[365856442,1749963038196,-460.0,0.00021917,4]
[365856443,1749963038206,-460.0,0.00021917,4]
[365856444,1749963038217,-460.0,0.00021917,4]
[365856445,1749963038227,-460.0,0.00021917,4]
[365856446,1749963038237,-457.11037825,0.00021917,4]
[365856447,1749963038246,-444.30203634,0.00021917,4]
[365856448,1749963038256,-430.0,0.00021917,4]
[365856449,1749963038266,-419.74926476,0.00021917,4]
[365856450,1749963038277,-595.64,0.00021917,4]
[365856451,1749963038286,-440.0,0.00021917,4]
[365856452,1749963038296,-430.0,0.00021917,4]
[365856453,1749963038305,-437.94082265,0.00021917,4]
[365856454,1749963038315,-460.0,0.00021917,4]
[365856455,1749963038325,-460.0,0.00021917,4]
[365856456,1749963038334,-460.0,0.00021917,4]
[365856457,1749963038344,-448.48755791,0.00021917,4]
[365856458,1749963038353,-460.0,0.00021917,4]
[365856459,1749963038363,-221.35212491,0.00021917,4]
[365856460,1749963038372,-460.0,0.00021917,4]
[365856461,1749963038382,-460.0,0.00021917,4]
[365856462,1749963038392,-460.0,0.00021917,4]
[365856463,1749963038402,-430.0,0.00021917,4]
[365856464,1749963038412,-433.28200542,0.00021917,4]
[365856465,1749963038421,-419.97283349,0.00021917,4]
[365856466,1749963038431,-460.0,0.00021917,2]
[365856467,1749963038441,-460.0,0.00021917,4]
[365856468,1749963038452,-460.0,0.00021917,4]
[365856469,1749963038461,-1987.79,0.00021917,4]
[365856470,1749963038470,-460.0,0.00021917,4]
[365856471,1749963038480,-460.0,0.00021917,4]
[365856472,1749963038490,-509.24,0.00021917,4]
[365856473,1749963038500,-440.0,0.00021917,4]
[365856474,1749963038509,-276.09947411,0.00021917,4]
[365856475,1749963038518,-460.0,0.00021917,4]
[365856476,1749963038528,-460.0,0.00021917,4]
[365856477,1749963038538,-430.0,0.00021917,4]
[365856478,1749963038547,-460.0,0.00021917,4]
[365856479,1749963038558,-3391.18,0.00021917,4]
[365856480,1749963038568,-460.0,0.00021917,4]
[365856481,1749963038579,-460.0,0.00021917,4]
[365856482,1749963038588,-460.0,0.00021917,4]
[365856483,1749963038598,-460.0,0.00021917,4]
[365856484,1749963038608,-460.0,0.00021917,4]
[365856485,1749963038621,-430.0,0.00021917,4]
[365856486,1749963038631,-460.0,0.00021917,4]
[365856487,1749963038640,-573.09,0.00021917,4]
[365856488,1749963038650,-460.0,0.00021917,4]
[365856489,1749963038660,-460.0,0.00021917,4]
[365856490,1749963038670,-2481.64,0.00021917,4]
[365856491,1749963038679,-331.24740836,0.00021917,4]
[365856492,1749963038688,-2775.95,0.00021917,4]
[365856493,1749963038698,-827.12,0.00021917,4]
[365856494,1749963038708,-430.0,0.00021917,4]
[365856495,1749963038718,-430.0,0.00021917,4]
[365856496,1749963038727,-460.0,0.00021917,4]
[365856497,1749963038736,-440.16378127,0.00021917,4]
[365856498,1749963038746,-430.0,0.00021917,4]
[365856499,1749963038755,-457.01837885,0.00021917,4]
[365856500,1749963038764,-676.84,0.00021917,4]
[365856501,1749963038773,-3331.49,0.00021917,4]
[365856502,1749963038782,-275.00975943,0.00021917,4]
[365856503,1749963038792,-460.0,0.00021917,4]
[365856504,1749963038801,-430.0,0.00021917,4]
[365856505,1749963038811,-500.0,0.00021917,4]
[365856506,1749963038820,-460.0,0.00021917,4]
[365856507,1749963038830,-460.0,0.00021917,4]
[365856508,1749963038839,-1404.32,0.00021917,4]
[365856509,1749963038848,-460.0,0.00021917,4]
[365856510,1749963038858,-437.13191541,0.00021917,4]
[365856511,1749963038867,-628.95,0.00021917,4]
[365856512,1749963038876,-460.0,0.00021917,4]
[365856513,1749963038885,-460.0,0.00021917,4]
[365856514,1749963038895,-1085.02,0.00021917,4]
[365856515,1749963038907,-460.0,0.00021917,4]
[365856516,1749963038916,-460.0,0.00021917,4]
[365856517,1749963038925,-430.0,0.00021917,4]
[365856518,1749963038935,-460.0,0.00021917,4]
[365856519,1749963038944,-460.0,0.00021917,4]
[365856520,1749963038953,-1391.03,0.00021917,4]
[365856521,1749963038962,-460.0,0.00021917,4]
[365856522,1749963038971,-771.52,0.00021917,4]
[365856523,1749963038981,-460.0,0.00021917,4]
[365856524,1749963038990,-460.0,0.00021917,4]
[365856525,1749963039000,-460.0,0.00021917,4]
[365856526,1749963039009,-438.70831734,0.00021917,4]
[365856527,1749963039019,-460.0,0.00021917,4]
[365856528,1749963039028,-460.0,0.00021917,4]
[365856529,1749963039037,-460.0,0.00021917,4]
[365856530,1749963039047,-460.0,0.00021917,4]
[365856531,1749963039056,-460.0,0.00021917,4]
[365856532,1749963039065,-539.84,0.00021917,4]
[365856533,1749963039074,-460.0,0.00021917,4]
[365856534,1749963039084,-460.0,0.00021917,4]
[365856535,1749963039093,-460.0,0.00021917,4]
[365856536,1749963039103,-460.0,0.00021917,4]
[365856537,1749963039112,-460.0,0.00021917,4]
[365856538,1749963039122,-460.0,0.00021917,4]
[365856539,1749963039132,-460.0,0.00021917,4]
[365856540,1749963039141,-460.0,0.00021917,4]
[365856541,1749963039150,-460.0,0.00021917,4]
[365856542,1749963039159,-460.0,0.00021917,4]
[365856543,1749963039168,-465.78,0.00021917,4]
[365856544,1749963039178,-971.52,0.00021917,4]
[365856545,1749963039187,-436.10618459,0.00021917,4]
[365856546,1749963039196,-292.47471781,0.00021917,4]
[365856547,1749963039205,-460.0,0.00021917,4]
[365856548,1749963039214,-229.16029784,0.00021917,4]
[365856549,1749963039224,-460.0,0.00021917,4]
[365856550,1749963039233,-460.0,0.00021917,4]
[365856551,1749963039243,-473.63753092,0.00021917,4]
[365856552,1749963039252,-178.14075514,0.00021917,4]
[365856553,1749963039261,-460.0,0.00021917,4]
[365856554,1749963039270,-702.26,0.00021917,4]
[365856555,1749963039279,-1623.39,0.00021917,4]
[365856556,1749963039289,-460.0,0.00021917,4]
[365856557,1749963039298,-1730.43,0.00021917,4]
[365856558,1749963039307,-436.95411518,0.00021917,4]
[365856559,1749963039317,-460.0,0.00021917,4]
[365856560,1749963039326,-393.31332264,0.00021917,4]
[365856561,1749963039336,-305.84188644,0.00021917,4]
[365856562,1749963039346,-460.0,0.00021917,4]
[365856563,1749963039355,-2591.85,0.00021917,4]
[365856564,1749963039364,-468.44820745,0.00021917,4]
[365856565,1749963039374,-504.71,0.00021917,4]
[365856566,1749963039383,-460.0,0.00021917,4]
[365856567,1749963039392,-460.0,0.00021917,4]
[365856568,1749963039402,-460.0,0.00021917,4]
[365856569,1749963039412,-460.0,0.00021917,4]
[365856570,1749963039421,-460.0,0.00021917,4]
[365856571,1749963039430,-460.0,0.00021917,4]
[365856572,1749963039440,-1473.79,0.00021917,4]
[365856573,1749963039449,-364.70178477,0.00021917,4]
[365856574,1749963039459,-185.76972603,0.00021917,4]
[365856575,1749963039468,-436.10138319,0.00021917,4]
[365856576,1749963039477,-460.0,0.00021917,4]
[365856577,1749963039487,-460.0,0.00021917,4]
[365856579,1749963039496,-460.0,0.00021917,4]
[365856580,1749963039506,-460.0,0.00021917,4]
[365856581,1749963039515,-353.23047862,0.00021917,4]
[365856582,1749963039525,-492.76,0.00021917,4]
[365856584,1749963039534,-2157.28,0.00021917,4]
[365856585,1749963039544,-460.0,0.00021917,4]
[365856586,1749963039553,-460.0,0.00021917,4]
[365856587,1749963039566,-263.11956598,0.00021917,4]
[365856588,1749963039575,-460.0,0.00021917,4]
[365856589,1749963039585,-460.0,0.00021917,4]
[365856590,1749963039595,-460.0,0.00021917,4]
[365856591,1749963039605,-1691.19,0.00021917,4]
[365856592,1749963039617,-878.59,0.00021917,4]
[365856593,1749963039627,-439.45147197,0.00021917,4]
[365856594,1749963039637,-543.65,0.00021917,4]
[365856595,1749963039647,-471.53,0.00021917,4]
[365856596,1749963039658,-185.89,0.00022028,3]
[365856597,1749963039669,-557.67,0.00022028,3]
[365856598,1749963039678,-1258.14015166,0.00022038,6]
[365856599,1749963039689,-409.67607091,0.00022091,2]
[365856600,1749963039700,-1258.14015166,0.00022176,6]
[365856601,1749963039709,-500.0,0.00022177,2]
[365856602,1749963039719,-423.28597389,0.00022191,4]
[365856603,1749963039728,-460.0,0.00022191,4]
[365856604,1749963039737,-232.49433046,0.00022191,4]
[365856605,1749963039747,-460.0,0.00022191,4]
[365856606,1749963039756,-541.38,0.00022191,4]
[365856607,1749963039766,-500.67,0.00022191,4]
[365856608,1749963039775,-460.0,0.00022191,4]
[365856610,1749963039785,-791.45,0.00022191,4]
[365856612,1749963039794,-227.14501272,0.00022191,4]
[365856614,1749963039803,-444.58906029,0.00022191,4]
[365856616,1749963039813,-460.0,0.00022191,4]
[365856618,1749963039821,-460.0,0.00022191,4]
[365856620,1749963039830,-460.0,0.00022191,4]
[365856622,1749963039839,-460.0,0.00022191,4]
[365856624,1749963039848,-460.0,0.00022191,4]
[365856626,1749963039858,-420.0,0.00022191,4]
[365856628,1749963039867,-595.64,0.00022191,4]
[365856630,1749963039876,-460.0,0.00022191,4]
[365856631,1749963039886,-460.0,0.00022191,4]
[365856632,1749963039895,-270.0,0.00022191,4]
[365856633,1749963039904,-382.56125188,0.00022191,4]
[365856634,1749963039914,-357.04509938,0.00022191,4]
[365856635,1749963039923,-460.0,0.00022191,2]
[365856636,1749963039934,-460.0,0.00022191,4]
[365856637,1749963039947,-460.0,0.00022191,4]
[365856638,1749963039956,-1987.79,0.00022191,4]
[365856639,1749963039965,-460.0,0.00022191,4]
[365856640,1749963039975,-509.24,0.00022191,4]
[365856641,1749963039984,-460.0,0.00022191,4]
[365856642,1749963039993,-460.0,0.00022191,4]
[365856644,1749963040003,-460.0,0.00022191,4]
[365856646,1749963040013,-3391.18,0.00022191,4]
[365856648,1749963040022,-460.0,0.00022191,4]
[365856650,1749963040032,-460.0,0.00022191,4]
[365856652,1749963040042,-354.70169075,0.00022191,4]
[365856654,1749963040051,-161.5102222,0.00022191,4]
[365856656,1749963040062,-460.0,0.00022191,4]
[365856659,1749963040071,-460.0,0.00022191,4]
[365856660,1749963040081,-573.09,0.00022191,4]
[365856662,1749963040091,-460.0,0.00022191,4]
[365856665,1749963040100,-310.0,0.00022191,4]
[365856667,1749963040109,-2481.64,0.00022191,4]
[365856669,1749963040119,-2775.95,0.00022191,4]
[365856671,1749963040128,-827.12,0.00022191,4]
[365856673,1749963040137,-460.0,0.00022191,4]
[365856675,1749963040147,-676.84,0.00022191,4]
[365856677,1749963040157,-3331.49,0.00022191,4]
[365856678,1749963040166,-460.0,0.00022191,4]
[365856681,1749963040176,-460.0,0.00022191,4]
[365856683,1749963040188,-460.0,0.00022191,4]
[365856685,1749963040197,-1404.32,0.00022191,4]
[365856687,1749963040206,-460.0,0.00022191,4]
[365856689,1749963040215,-628.95,0.00022191,4]
[365856691,1749963040224,-460.0,0.00022191,4]
[365856693,1749963040233,-1085.02,0.00022191,4]
[365856695,1749963040242,-460.0,0.00022191,4]
[365856697,1749963040252,-460.0,0.00022191,4]
[365856699,1749963040261,-460.0,0.00022191,4]
[365856701,1749963040270,-1391.03,0.00022191,4]
[365856703,1749963040279,-460.0,0.00022191,4]
[365856705,1749963040288,-771.52,0.00022191,4]
[365856706,1749963040297,-460.0,0.00022191,4]
[365856708,1749963040306,-460.0,0.00022191,4]
[365856710,1749963040315,-400.0,0.00022191,4]
[365856712,1749963040324,-460.0,0.00022191,4]
[365856714,1749963040334,-460.0,0.00022191,4]
[365856716,1749963040343,-460.0,0.00022191,4]
[365856717,1749963040353,-460.0,0.00022191,4]
[365856718,1749963040363,-539.84,0.00022191,4]
[365856719,1749963040372,-462.39254253,0.00022191,4]
[365856720,1749963040382,-460.0,0.00022191,4]
[365856721,1749963040391,-460.0,0.00022191,4]
[365856722,1749963040401,-460.0,0.00022191,4]
[365856723,1749963040410,-460.0,0.00022191,4]
[365856724,1749963040419,-460.0,0.00022191,4]
[365856725,1749963040429,-460.0,0.00022191,4]
[365856726,1749963040438,-460.0,0.00022191,4]
[365856727,1749963040447,-460.0,0.00022191,4]
[365856728,1749963040583,-465.78,0.00022191,4]